Cogmind - Beta 10.2 @@@ ROGUE MODE // 2022.02.04 @ 17:23:33 Player: lumberblack Result: Destroyed by S-10 Pest with Light Assault Rifle Performance ------------- Evolutions (2) 1000 Regions Visited (4) 800 Robots Destroyed (0) 0 Value Destroyed (0) 0 Prototype IDs (3) 60 Alien Tech Used (0) 0 Bonus (503) 503 TOTAL SCORE: 2363 Bonus ------- Pacifist 470 Follower Combat Kills 33 Cogmind --------- Core Integrity 0/550 Matter 273/300 Energy 68/100 System Corruption 0% Temperature Cool (0) Movement Core (50) Location -8/Materials Parts ------- > --- POWER (1) -------- (None) > --- PROPULSION (4) --- Light Treads Light Treads Armored Treads > --- UTILITY (4) ------ Propulsion Shielding > --- WEAPON (2) ------- (None) > --- INVENTORY (4) ---- Ion Engine Wheel Peak State ------------ > --- POWER ------------ (None) > --- PROPULSION ------- Light Treads Light Treads Armored Treads > --- UTILITY ---------- Propulsion Shielding > --- WEAPON ----------- (None) > --- INVENTORY -------- Ion Engine Wheel [Rating: 6] Favorites ----------- Power None Propulsion Armored Treads Treads Armored Treads Utility Propulsion Shielding Protection Propulsion Shielding Weapon None Build | -11 -10 -10 -9 -8 ------- Run | Scr Mat Min Mat Mat Slots Evolved 4 | . . . 2 2 Power . | . . . . . Propulsion 2 | . . . . 2 Utility 2 | . . . 2 . Weapon . | . . . . . Parts Attached 4 | . 1 . . 3 Power . | . . . . . Engine . | . . . . . Core . | . . . . . Reactor . | . . . . . Propulsion 3 | . . . . 3 Treads 3 | . . . . 3 Leg . | . . . . . Wheel . | . . . . . Hover . | . . . . . Flight . | . . . . . Utility 1 | . 1 . . . Device . | . . . . . Storage . | . . . . . Processor . | . . . . . Hackware . | . . . . . Protection 1 | . 1 . . . Artifact . | . . . . . Weapon . | . . . . . Energy Gun . | . . . . . Energy Cannon . | . . . . . Ballistic Gun . | . . . . . Ballistic Cannon . | . . . . . Launcher . | . . . . . Special Weapon . | . . . . . Impact Weapon . | . . . . . Slashing Weapon . | . . . . . Piercing Weapon . | . . . . . Special Melee Weapon . | . . . . . Unidentified Prototypes . | . . . . . Parts Lost . | . . . . . Power . | . . . . . Propulsion . | . . . . . Utility . | . . . . . Weapon . | . . . . . Highest Loss Streak . | . . . . . Average Slot Usage (%) 10 | . 2 14 11 12 Treads 1 | . . . . 3 Protection 8 | . 2 14 11 9 Naked Turns 44 | . 44 . . . Heaviest Build 1 | . 1 1 1 1 Greatest Support 3 | 3 3 3 3 3 Greatest Overweight (x) . | . . . . . Average Overweight (x) . | . . . . . Largest Inventory Capacity 4 | . 4 4 4 4 Average Capacity 4 | . 4 4 4 4 Most Carried 4 | . 4 4 4 4 Average Carried 3 | . 4 4 4 3 Final Capacity 4 | 4 4 4 4 4 Final Carried 4 | 4 4 4 4 2 Class Distribution -------------------- 100% | Mutant Dominant Class ---------------- Mutant | -10/Materials Mutant | -10/Mines Mutant | -9/Materials Mutant | -8/Materials Resources | -11 -10 -10 -9 -8 ----------- Run | Scr Mat Min Mat Mat Matter Collected 200 | 200 . . . . Remotely . | . . . . . Salvage Created . | . . . . . Parts . | . . . . . Haulers Intercepted . | . . . . . Recyclers Shooed . | . . . . . Parts Field Recycled . | . . . . . Retrieved Matter . | . . . . . Parts Self-Destructed . | . . . . . Prevented . | . . . . . Kills | -11 -10 -10 -9 -8 ------- Run | Scr Mat Min Mat Mat Combat Hostiles Destroyed . | . . . . . Classes Destroyed . | . . . . . Best Kill Streak . | . . . . . Combat Bots Only . | . . . . . Max Kills in Single Turn . | . . . . . Gunslinging . | . . . . . Exploded . | . . . . . Melee . | . . . . . Uniques/NPCs Destroyed . | . . . . . Combat | -11 -10 -10 -9 -8 -------- Run | Scr Mat Min Mat Mat Damage Taken 1062 | . 171 36 161 694 Core 918 | . 171 36 161 550 Absorbed by Shields . | . . . . . Core Remaining (%) 58 | 100 . 17 59 . Volleys Fired . | . . . . . Largest . | . . . . . Hottest . | . . . . . Shots Fired . | . . . . . Gun . | . . . . . Cannon . | . . . . . Launcher . | . . . . . Special . | . . . . . Kinetic . | . . . . . Thermal . | . . . . . Explosive . | . . . . . Electromagnetic . | . . . . . Robot Hit Streak . | . . . . . Robot Miss Streak . | . . . . . Penetration Max . | . . . . . Secondary Targets . | . . . . . Shots Hit Robots . | . . . . . Core Hits 4 | . 3 . . 1 Critical Hits . | . . . . . Critical Kills . | . . . . . Critical Parts Destroyed . | . . . . . Melee Attacks . | . . . . . Impact . | . . . . . Slashing . | . . . . . Piercing . | . . . . . Sneak Attacks . | . . . . . Combat Hostiles . | . . . . . Follow-up Attacks . | . . . . . Damage Inflicted 23 | . 12 . . 11 Guns . | . . . . . Cannons . | . . . . . Explosions . | . . . . . Melee . | . . . . . Ramming 23 | . 12 . . 11 Kinetic . | . . . . . Thermal . | . . . . . Explosive . | . . . . . Electromagnetic . | . . . . . Impact . | . . . . . Slashing . | . . . . . Piercing . | . . . . . Highest Corruption . | . . . . . Average Corruption . | . . . . . Corruption Purged . | . . . . . Overload Shots . | . . . . . Overflow Damage . | . . . . . Projectiles . | . . . . . Explosions . | . . . . . Melee . | . . . . . Knockbacks . | . . . . . Impact . | . . . . . Kinetic . | . . . . . Secondary . | . . . . . Self-Inflicted Damage 10 | . 5 . . 5 Shots . | . . . . . Rammed 6 | . 4 . . 2 Targets Rammed 6 | . 4 . . 2 Kicked . | . . . . . Crushed . | . . . . . Highest Temperature . | . . . . . Average Temperature . | . . . . . Received Heat Transfer 252 | . 30 21 84 117 Siege Activations . | . . . . . Robots Corrupted . | . . . . . Combat Hostiles . | . . . . . Parts Fried . | . . . . . Impact Corruptions . | . . . . . Robots Melted . | . . . . . Combat Hostiles . | . . . . . Parts Melted . | . . . . . Heat Transferred . | . . . . . Parts Sabotaged . | . . . . . Parts Stolen . | . . . . . Parts Stripped . | . . . . . Power Chain Reactions . | . . . . . Missiles Intercepted . | . . . . . Alert | -11 -10 -10 -9 -8 ------- Run | Scr Mat Min Mat Mat Peak Influence 273 | . 66 25 107 273 Initial 44 | . . 25 9 44 Average 74 | . 7 25 71 120 Maximum Alert Level 1 | . . . . 1 Low Security (%) 93 | . 100 100 100 83 Level 1 6 | . . . . 16 Level 2 . | . . . . . Level 3 . | . . . . . Level 4 . | . . . . . Level 5 . | . . . . . High Security . | . . . . . Max Security . | . . . . . Squads Dispatched 8 | . 2 . 3 3 Investigation 6 | . 1 . 2 3 Extermination . | . . . . . Reinforcement 2 | . 1 . 1 . Assault . | . . . . . Garrison . | . . . . . Intercept . | . . . . . Construction Impeded . | . . . . . Haulers Reinforced . | . . . . . Stealth | -11 -10 -10 -9 -8 --------- Run | Scr Mat Min Mat Mat Distress Signals 3 | . . . 2 1 Communications Jammed . | . . . . . Distress Signals . | . . . . . Times Spotted 49 | . 9 2 15 23 Peak Tracking Total 16 | . 8 2 13 16 Tactical Retreats 5 | . 1 . . 4 Traps | -11 -10 -10 -9 -8 ------- Run | Scr Mat Min Mat Mat Traps Triggered . | . . . . . Indirectly . | . . . . . Trap Hack Attempts . | . . . . . Triggered . | . . . . . Disarmed . | . . . . . Reprogrammed . | . . . . . Reused . | . . . . . Traps Extracted . | . . . . . Installed . | . . . . . Triggered . | . . . . . Machines | -11 -10 -10 -9 -8 ---------- Run | Scr Mat Min Mat Mat Machines Disabled . | . . . . . Max in Single Turn . | . . . . . Machines Sabotaged . | . . . . . Garrisons Compromised . | . . . . . Overloaded Fab Kills . | . . . . . Fab Network Shutdowns . | . . . . . Hacking | -11 -10 -10 -9 -8 --------- Run | Scr Mat Min Mat Mat Machines Accessed 9 | . 2 . 2 5 Terminals 9 | . 2 . 2 5 Fabricators . | . . . . . Repair Stations . | . . . . . Recycling Units . | . . . . . Scanalyzers . | . . . . . Garrison Access . | . . . . . Total Hacks 30 | . 4 . 9 17 Successful 7 | . 1 . 1 5 Failed 23 | . 3 . 8 12 Catastrophic 9 | . 2 . 3 4 Database Lockouts . | . . . . . Manual 20 | . 4 . 9 7 Terminals 30 | . 4 . 9 17 Fabricators . | . . . . . Repair Stations . | . . . . . Recycling Units . | . . . . . Scanalyzers . | . . . . . Garrison Access . | . . . . . Terminal Hacks 7 | . 1 . 1 5 Prototype ID Bank 1 | . . . . 1 Terminal Index 2 | . 1 . 1 . Repair Station Index 1 | . . . . 1 Scanalyzer Index 1 | . . . . 1 Unreport Threat 1 | . . . . 1 Zone Layout 1 | . . . . 1 Fabricator Hacks . | . . . . . Repair Station Hacks . | . . . . . Recycling Unit Hacks . | . . . . . Scanalyzer . | . . . . . Garrison Access Hacks . | . . . . . Unauthorized Hacks . | . . . . . Terminals . | . . . . . Fabricators . | . . . . . Repair Stations . | . . . . . Recycling Units . | . . . . . Scanalyzers . | . . . . . Garrison Access . | . . . . . Data Cores Recovered . | . . . . . Used . | . . . . . Hacking Detections 9 | . 2 . 2 5 Full Trace Events 6 | . 1 . 2 3 Feedback Events . | . . . . . Feedback Blocked . | . . . . . Robot Schematics Acquired . | . . . . . Robots Built . | . . . . . Matter . | . . . . . Time . | . . . . . Total Robot Build Rating . | . . . . . Part Schematics Acquired . | . . . . . Parts Built . | . . . . . Matter . | . . . . . Time . | . . . . . Total Part Build Rating . | . . . . . Parts Repaired . | . . . . . Time . | . . . . . Parts Recycled . | . . . . . Recycled Matter . | . . . . . Retrieved Matter . | . . . . . Retrieved Components . | . . . . . Parts Scanalyzed . | . . . . . Part Schematics Acquired . | . . . . . Parts Damaged . | . . . . . Bothacking | -11 -10 -10 -9 -8 ------------ Run | Scr Mat Min Mat Mat Used RIF Installer . | . . . . . Robots Hacked . | . . . . . Non-combat . | . . . . . Combat . | . . . . . Robot Hacks Applied . | . . . . . Relay Couplers Released . | . . . . . Robots Rewired . | . . . . . Allies Hacked . | . . . . . Hacks Repelled . | . . . . . Allies | -11 -10 -10 -9 -8 -------- Run | Scr Mat Min Mat Mat Total Allies 3 | . . 3 . . Largest Group 3 | . . 3 2 . Highest-Rated Group 40 | . . 40 24 . Highest-Rated Ally 16 | . . 16 16 . Total Orders . | . . . . . Ally Attacks 6 | . . . 6 . Total Damage 44 | . . . 44 . Kills 1 | . . . 1 . Allies Corrupted . | . . . . . Allies Melted . | . . . . . Intel | -11 -10 -10 -9 -8 ------- Run | Scr Mat Min Mat Mat Robot Analysis Total . | . . . . . Derelict Logs Recovered 1 | . . 1 . . Drone Launches . | . . . . . Drone Recoveries . | . . . . . Exploration | -11 -10 -10 -9 -8 ------------- Run | Scr Mat Min Mat Mat Turns Passed 273 | . 54 21 88 110 Spaces Moved 523 | 1 97 41 175 209 Core 523 | 1 97 41 175 209 Treads . | . . . . . Legs . | . . . . . Wheels . | . . . . . Hover . | . . . . . Flight . | . . . . . Fastest Speed 50 | 50 50 50 50 50 Average Speed 50 | 50 50 50 50 50 Slowest Speed 50 | 50 50 50 50 50 Overloaded Moves . | . . . . . Propulsion Burnouts . | . . . . . Robots Hopped . | . . . . . Cave-ins Triggered . | . . . . . Exploration Rate (%) 24 | 2 32 22 33 35 Regions Visited 4 Branch Regions 1 Pre-discovered Areas . | . . . . . Known Exits Taken 1 | . . 1 . . Unknown Exits Taken 3 | 1 1 . 1 . Scrap Searched . | . . . . . Spaces Dug . | . . . . . Terrain Destroyed . | . . . . . Melee . | . . . . . Projectile . | . . . . . AOE . | . . . . . Terrain Rammed . | . . . . . Walls Destroyed . | . . . . . Machines Disabled . | . . . . . Actions | -11 -10 -10 -9 -8 --------- Run | Scr Mat Min Mat Mat Total 529 | . 101 40 174 214 Wait . | . . . . . Move 520 | . 97 40 174 209 Hop . | . . . . . Pick Up . | . . . . . Fast Attach 2 | . 1 . . 1 Attach 2 | . . . . 2 Detach . | . . . . . Swap . | . . . . . Drop . | . . . . . Fire . | . . . . . Melee . | . . . . . Ram 5 | . 3 . . 2 Kick . | . . . . . Crush . | . . . . . Escape Stasis . | . . . . . Rewire . | . . . . . Trap . | . . . . . Miscellaneous . | . . . . . Route ------- -11/Scrapyard -10/Materials -10/Mines -9/Materials -8/Materials History --------- Turn | Location | Event 1 | -11/Scrapyard | Released all parts (6) 1 | -11/Scrapyard | Discovered new exit (range 0) 1 | -11/Scrapyard | Entered Materials 50 | -10/Materials | Discovered new exit (range 7) 54 | -10/Materials | Core integrity fell below 50% 55 | -10/Materials | Entered Mines 58 | -10/Mines | Core integrity fell below 20% 63 | -10/Mines | Identified exit to Materials 73 | -10/Mines | Assisted by bots powering up and referring to "LRC-V3" 76 | -10/Mines | Entered Materials 76 | -9/Materials | Accompanied by 2 allies 76 | -9/Materials | Evolved 2 slots: Utility x2 159 | -9/Materials | Discovered new exit (range 11) 164 | -9/Materials | Entered another Materials area 164 | -8/Materials | Evolved 2 slots: Propulsion x2 215 | -8/Materials | Core integrity fell below 50% 230 | -8/Materials | Core integrity fell below 20% 274 | -8/Materials | Destroyed by S-10 Pest with Light Assault Rifle Last Messages --------------- 00184_ W-25 Informer sends out distress signal. 00188_ Connecting with Terminal... 00188_ ALERT: Suspicious activity at Terminal M009. Dispatching Investigation squad. 00196_ K-01 Serf collects debris. 00214_ Slammed into Y-45 Defender. 00228_ C-30 ARC bursts open, deploying its payload. 00228_ S-10 Pest unfolds itself. 00229_ Neutrino Reactor explodes. 00234_ Acquired Arm. Treads. 00237_ Slammed into S-10 Pest. 00238_ S-10 Pest destroyed. 00241_ Connecting with Terminal... 00241_ ALERT: Suspicious activity at Terminal M012. Dispatching Investigation squad. 00242_ U-05 Engineer lays Concrete. 00253_ Connecting with Terminal... 00253_ ALERT: Suspicious activity at Terminal M001. Dispatching Investigation squad. 00274_ S-10 Pest destroyed. Map ----- +----------------------------------------------------+ | ?????????????????#]]! "?? ?? | | ?????????????????#]]! "T ?? | | ?????????????????#]]! """ """ """ "" ??? | | ?????????????????# """ """ """ ?? | | ?????????????????# """ """ """ ?? | | ?????????????????# ?? | | ?????????????????# #??????? | | ?????????????????# """ """ """ """ #??????? | | ?????????????????# """ """ """ """ #??????? | | ???????????????? """ """ """ """ #??????? | | ??????????????? +??????? | | ?????????????? #??????? | | ?????????????? #??????? | | ??????????????????########### ####### #??????? | | ????????????????????????????# #?????# #??????? | | ????????????????????????????# #?????# #??????? | | ????????????????????????????# #?????# #??????? | | ????????????????????????????# #?????# #??????? | | ????????????????????????????# #?????# #??????? | | ????????????????????????????# #?????# #??????? | | ????????????????????????????# #?????# #??????? | | ??????????????###+????????### ###???# #??????? | | ???????????#### ####### ##### ###????? | | ???????????? ! = ssss | | ???????????? T s =!%#############+#### | | ?????????? ss @ [* #????????????????? | | ??????????????# ####### #????????????????? | | ??????????????????????????#######????????????????? | | ?????????????????????????????????????????????????? | | ?????????????????????????????????????????????????? | | ?????????????????????????????????????????????????? | | ?????????????????????????????????????????????????? | | ?????????????????????????????????????????????????? | | ?????????????????????????????????????????????????? | | ?????????????????????????????????????????????????? | | ?????????????????????????????????????????????????? | | ?????????????????????????????????????????????????? | | ?????????????????????????????????????????????????? | | ?????????????????????????????????????????????????? | | ?????????????????????????????????????????????????? | | ?????????????????????????????????????????????????? | | ?????????????????????????????????????????????????? | | ?????????????????????????????????????????????????? | | ?????????????????????????????????????????????????? | | ?????????????????????????????????????????????????? | | ?????????????????????????????????????????????????? | | ?????????????????????????????????????????????????? | | ?????????????????????????????????????????????????? | | ?????????????????????????????????????????????????? | | ?????????????????????????????????????????????????? | +----------------------------------------------------+ Best States ------------- Heat Dissipation 31 Energy Generation 5 Energy Capacity 100 Matter Stores 300 Matter Capacity 300 Sight Range 16 Terrain Scan Density 10 Propulsion Shielding 33 Evasion (%) 50 Item Schematics ----------------- None Robot Schematics ------------------ None Fabricated ------------ Nothing Alien Tech Used ----------------- None Achievements -------------- None Challenges ------------ None Game ------ Seed ShadeBarrageCutter Manual? 0 Play Time 00:09:54 Cumulative 332.2 hours Start 2022.02.04 @ 17:16:47 End 2022.02.04 @ 17:23:33 Sessions 1 Manual Loads 0 Difficulty Rogue Special Mode None Game No. 269 Rogue 269 Adventurer 0 Explorer 0 Win Type - Total 6 Types 5/0/1/0/0/0/0/0/0 Lore% 55 Gallery% 78 Achievement% 62 Wizard Run 0 Options --------- ASCII 0 Keyboard 0 Movement Numpad Keybinds 0 Fullscreen 2 Font 18/TerminusBold Map View 76x50 Tactical HUD 1 Map Filters NONE Filters NONE Steam 1 RUN: eed8a445-34bc-4c15-a2cc-f9e62472812a